bitfinex/quotes_ETHUSD_20251116
["timestamp","ask_amount","ask_price","bid_price","bid_amount"]
[1763281775212,5.88161212,3213.8,3213.7,0.4743]
[1763281775436,6.17286746,3213.8,3213.7,0.4743]
[1763281775953,3.06128616,3213.8,3213.7,0.4743]
[1763281776134,3.06128616,3213.8,3213.7,0.9377]
[1763281776323,1.42499614,3213.8,3213.7,0.9377]
[1763281776717,1.1337408,3213.8,3213.7,0.9377]
[1763281777639,0.002,3214.1,3213.7,0.9377]
[1763281777838,1.42716605,3214.1,3214.0,0.4743]
[1763281778386,0.002,3214.1,3214.0,0.9377]
[1763281779445,0.002,3214.1,3214.0,0.4743]
[1763281780069,0.002,3214.1,3214.0,0.9377]
[1763281780264,0.2936283,3214.1,3214.0,0.9377]
[1763281781572,0.2936283,3214.1,3214.0,0.4743]
[1763281781780,1.4273691,3214.1,3214.0,0.4743]
[1763281781985,0.2936283,3214.1,3214.0,0.9377]
[1763281782192,1.4273691,3214.1,3214.0,0.9377]
[1763281783284,0.2936283,3214.1,3214.0,0.9377]
[1763281784175,0.002,3214.1,3214.0,0.9377]
[1763281791288,0.002,3214.1,3214.0,0.4743]
[1763281792780,0.002,3214.1,3214.0,0.9377]
[1763281793276,1.1357408,3214.1,3214.0,0.9377]
[1763281793755,0.002,3214.1,3214.0,0.9377]
[1763281794165,1.1357408,3214.1,3214.0,0.9377]
[1763281794369,1.1357408,3214.1,3214.0,0.4743]
[1763281794789,0.002,3214.1,3214.0,0.4743]
[1763281795876,0.4857,3214.1,3213.7,0.93487504]
[1763281796259,0.4857,3214.1,3213.7,1.39827504]
[1763281796461,0.002,3214.1,3213.8,0.4634]
[1763281796658,0.002,3214.1,3214.0,0.4743]
[1763281797261,0.002,3214.1,3214.0,0.9377]
[1763281797792,0.002,3214.1,3214.0,1.872476]
[1763281797965,0.002,3214.1,3214.0,2.23741795]
[1763281798779,0.002,3214.1,3214.0,3.98324561]
[1763281800364,0.002,3214.1,3214.0,9.24596494]
[1763281800365,0.001,3214.1,3214.0,9.24596494]
[1763281800561,0.001,3214.1,3214.0,6.13457727]
[1763281800762,0.001,3214.1,3214.0,9.24596494]
[1763281801081,0.001,3214.1,3214.0,10.37970574]
[1763281802774,0.001,3214.1,3214.0,10.38070574]
[1763281803503,0.002,3214.5,3214.1,1.5392448]
[1763281803799,0.002,3214.5,3214.4,4.44975932]
[1763281804004,0.002,3214.5,3214.4,5.58350012]
[1763281804299,0.002,3214.5,3214.4,6.04690012]
[1763281805268,0.002,3214.5,3214.4,9.15790061]
[1763281805666,0.002,3214.5,3214.4,9.28247646]
[1763281805866,0.002,3214.5,3214.4,11.00214078]
[1763281807506,0.002,3214.5,3214.4,7.51048546]
[1763281807804,0.002,3214.5,3214.4,11.00214078]
[1763281808513,0.002,3214.5,3214.4,7.89114029]
[1763281808808,0.002,3214.5,3214.4,11.71914029]
[1763281809621,0.002,3214.5,3214.4,11.31363629]
[1763281809921,0.002,3214.5,3214.4,11.71914029]
[1763281810704,0.002,3214.5,3214.4,14.83014078]
[1763281814173,0.002,3214.8,3214.7,5.03090012]
[1763281814373,0.002,3214.8,3214.7,5.99359013]
[1763281814580,0.002,3214.8,3214.7,10.30629013]
[1763281814929,0.002,3214.8,3214.7,10.43085047]
[1763281815705,0.002,3214.8,3214.7,13.54156064]
[1763281817008,0.002,3214.8,3214.7,4.91525035]
[1763281817203,0.002,3214.8,3214.7,4.2876]
[1763281817711,0.9511,3214.8,3214.5,0.4696]
[1763281817879,0.0266,3214.6,3214.1,0.1994]
[1763281818079,0.0266,3214.6,3214.1,2.26770131]
[1763281818281,0.4962,3214.6,3214.1,0.93456051]
[1763281818489,0.4962,3214.6,3214.0,0.001]
[1763281820529,0.4962,3214.6,3214.0,2.05552707]
[1763281820713,0.002,3214.8,3214.5,0.4596]
[1763281820892,0.002,3214.8,3214.7,4.35675932]
[1763281821081,0.002,3214.8,3214.7,2.61093166]
[1763281821412,0.002,3214.8,3214.7,4.84145932]
[1763281821609,0.002,3214.8,3214.7,5.79520525]
[1763281821942,0.002,3214.8,3214.7,10.03965622]
[1763281822922,0.002,3214.8,3214.7,8.58843511]
[1763281823985,0.002,3214.8,3214.7,4.99302494]
[1763281824326,0.002,3214.8,3214.7,1.81884993]
[1763281824530,0.002,3214.8,3214.7,1.35924993]
[1763281824685,0.002,3214.8,3214.7,0.875104]
[1763281825399,0.002,3214.8,3214.7,1.334704]
[1763281826406,0.4815,3214.8,3214.7,0.875104]
[1763281826713,0.4815,3214.8,3214.6,0.405504]
[1763281826714,0.9511,3214.8,3214.6,0.405504]
[1763281826928,0.0266,3214.7,3214.6,0.4815]
[1763281827152,0.4962,3214.7,3214.1,0.0638]
[1763281827451,0.4962,3214.7,3214.2,0.405504]
[1763281828557,0.4962,3214.7,3214.2,0.901704]
[1763281828744,0.4962,3214.7,3214.3,0.20992448]
[1763281829147,0.0266,3214.7,3214.3,0.20992448]
[1763281829330,0.002,3214.8,3214.3,0.20992448]
[1763281829664,0.4795,3214.4,3214.1,0.405504]
[1763281829820,0.475,3214.2,3214.1,0.53011827]
[1763281830020,0.475,3214.2,3214.1,0.405504]
[1763281830452,0.4696,3214.6,3214.1,0.405504]
[1763281836401,0.4612,3214.6,3214.1,0.469304]
[1763281836604,0.4612,3214.6,3214.2,0.43653765]
[1763281836990,0.4898,3214.3,3214.1,0.405504]
[1763281837504,0.4612,3214.6,3214.1,0.405504]
[1763281837802,0.4632,3214.8,3214.1,0.945204]
[1763281838339,0.002,3214.6,3214.1,0.945204]
[1763281839693,0.4632,3214.6,3214.1,0.945204]
[1763281839890,0.4632,3214.6,3214.2,0.17299034]
[1763281841805,0.002,3214.6,3214.5,0.878504]
[1763281842206,0.002,3214.6,3214.5,0.405504]
[1763281842407,0.4918,3214.6,3214.5,0.405504]
[1763281842606,0.002,3214.6,3214.5,0.878504]
[1763281842774,0.002,3214.6,3214.5,2.15488782]
[1763281843399,0.4918,3214.6,3214.5,0.80248382]
[1763281843597,0.002,3214.6,3214.1,0.471304]
[1763281843784,0.002,3214.6,3214.5,0.473]
[1763281844885,0.002,3214.6,3214.3,0.4918]
[1763281845612,0.002,3214.6,3214.5,0.878504]
[1763281845826,0.002,3214.6,3214.5,4.02051674]
[1763281846027,0.002,3214.6,3214.5,5.46772541]
[1763281846322,0.002,3214.6,3214.5,5.59231834]
[1763281846621,0.002,3214.6,3214.5,6.72605914]
[1763281846807,0.002,3214.6,3214.5,10.52295011]
[1763281849510,0.002,3214.8,3214.6,1.5392448]
[1763281849676,0.002,3214.8,3214.7,4.06269915]
[1763281849878,0.002,3214.8,3214.7,4.53659915]
[1763281850119,0.002,3214.8,3214.7,4.50549205]
[1763281851930,0.002,3214.8,3214.7,7.61620222]
[1763281852125,0.002,3214.8,3214.7,7.74075907]
[1763281852682,0.002,3214.8,3214.7,11.56875907]
[1763281853497,0.002,3215.0,3214.7,15.81321004]
[1763281853640,0.002,3215.0,3214.9,3.64802299]
[1763281853834,0.002,3215.0,3214.9,7.47602299]
[1763281854034,0.002,3215.0,3214.9,11.06043964]
[1763281854230,0.002,3215.0,3214.9,11.1849864]
[1763281854639,0.002,3215.3,3215.0,1.5392448]
[1763281854847,0.002,3215.3,3215.2,3.84542299]
[1763281855310,0.002,3215.3,3215.2,4.47495844]
[1763281855761,0.002,3215.3,3215.2,4.44385618]
[1763281856234,0.4918,3215.3,3215.2,1.25827399]
[1763281856438,0.002,3215.3,3215.2,7.20466907]
[1763281856646,0.002,3215.3,3215.2,7.61017307]
[1763281861364,0.002,3216.0,3215.6,2.0122448]
[1763281861551,0.002,3216.0,3215.3,1.6076408]
[1763281861552,0.002,3216.0,3215.9,3.64802299]
[1763281861750,0.002,3216.0,3215.9,3.67911848]
[1763281862062,0.002,3216.0,3215.9,4.64542941]
[1763281862560,0.002,3216.9,3215.9,4.64542941]
[1763281862561,0.002,3216.9,3216.3,0.878504]
[1763281862763,0.002,3216.9,3216.4,3.67911365]
[1763281863065,0.002,3216.9,3216.4,7.43626722]
[1763281863231,0.002,3216.9,3216.4,7.87907656]
[1763281863561,0.002,3216.9,3216.4,8.99764089]
[1763281863946,0.002,3216.9,3216.4,9.12212254]
[1763281864932,0.002,3216.9,3216.4,8.64822254]
[1763281865131,0.002,3216.9,3216.4,9.10002254]
[1763281865861,0.1885,3216.9,3216.4,8.64822254]
[1763281866061,0.6626,3216.9,3216.4,8.52129254]
[1763281866367,0.002,3216.9,3216.4,8.97309254]
[1763281867454,0.002,3216.9,3216.4,12.80109254]
[1763281875778,0.002,3216.9,3216.4,12.67661089]
[1763281878100,0.1953,3216.9,3216.4,12.22481089]
[1763281878300,0.9311,3216.5,3216.4,3.828]
[1763281878537,0.9311,3216.5,3216.4,8.07080683]
[1763281878720,0.9311,3216.5,3216.4,8.47631083]
[1763281879270,0.9311,3216.5,3216.4,5.3672448]
[1763281880106,0.9311,3216.5,3216.4,8.47631083]
[1763281880305,0.9311,3216.5,3216.4,5.3672448]
[1763281880474,0.9311,3216.5,3216.4,8.47631083]
[1763281880673,0.9311,3216.5,3216.4,9.86324461]
[1763281881091,0.4662,3216.5,3216.4,9.86324461]
[1763281881494,0.9311,3216.5,3216.4,9.86324461]
[1763281884895,0.9311,3216.5,3216.4,7.66866375]
[1763281885290,0.002,3216.5,3216.4,7.66866375]
[1763281885490,0.002,3216.5,3216.4,8.15036375]
[1763281886019,0.002,3216.5,3216.4,8.60456375]
[1763281887011,0.002,3216.5,3216.4,12.43256375]
[1763281887348,0.002,3216.5,3216.4,12.55704733]
[1763281889115,0.002,3216.5,3216.4,12.55804733]
[1763281889520,0.8713,3216.5,3216.4,1.38793378]
[1763281889747,0.8713,3216.5,3216.0,0.001]
[1763281889906,0.6575,3215.8,3214.8,0.12454133]
[1763281890109,0.4642,3214.9,3214.2,1.63441914]
[1763281890422,0.4649,3215.7,3214.4,1.63341914]
[1763281890629,0.4649,3215.6,3214.6,1.63341914]
[1763281890984,0.4642,3214.7,3214.6,1.63341914]
[1763281891203,0.4642,3214.7,3214.6,2.03892314]
[1763281891445,1.82671914,3215.8,3214.6,2.03892314]
[1763281891446,0.4649,3215.5,3214.7,1.5392448]
[1763281891744,0.4649,3215.5,3215.0,0.405504]
[1763281892256,0.4642,3215.1,3214.9,2.76715994]
[1763281892409,0.4649,3215.5,3215.0,0.58777672]
[1763281892608,0.1933,3215.8,3215.0,0.58777672]
[1763281892609,0.1933,3215.8,3215.2,1.63341914]
[1763281892828,0.1933,3215.8,3215.7,2.69131114]
[1763281893028,0.4649,3216.3,3215.8,0.405504]
[1763281893711,0.1953,3216.9,3216.1,0.405504]
[1763281894013,0.1953,3216.9,3216.3,5.80041269]
[1763281894341,0.1953,3216.9,3216.4,1.33066235]
[1763281894641,0.1953,3216.9,3216.4,2.43331249]
[1763281894805,0.4652,3216.5,3216.4,2.43331249]
[1763281895200,0.002,3216.5,3216.4,2.43331249]
[1763281896041,0.002,3216.5,3216.4,1.29957169]
[1763281896343,0.002,3216.5,3216.4,4.64831083]
[1763281898426,0.002,3216.5,3216.4,5.09911083]
[1763281898742,0.4652,3216.5,3216.4,4.64831083]
[1763281899138,0.002,3216.5,3216.4,5.09911083]
[1763281899341,0.002,3216.5,3216.4,6.17961105]
[1763281899731,0.002,3216.5,3216.4,6.64671105]
[1763281899934,0.002,3216.5,3216.4,6.61562039]
[1763281900325,0.002,3216.5,3216.4,8.43432753]
[1763281901635,0.002,3216.5,3216.4,7.98352753]
[1763281901836,0.4652,3216.5,3216.4,7.98352753]
[1763281902358,0.002,3216.5,3216.4,7.98352753]
[1763281906153,0.002,3216.5,3216.4,8.43432753]
[1763281906815,0.002,3216.5,3216.4,10.47261338]
[1763281907216,0.002,3216.5,3216.4,10.02181338]
[1763281907446,0.002,3216.5,3216.4,7.73600624]
[1763281908426,0.002,3216.5,3216.4,11.56400624]
[1763281908725,0.4652,3216.5,3216.4,11.56400624]
[1763281908925,0.9153,3216.5,3216.4,11.56400624]
[1763281910829,0.4652,3216.5,3216.4,11.56400624]
[1763281911018,0.9153,3216.5,3216.4,11.56400624]
[1763281911548,0.9153,3216.5,3216.4,9.52572039]
[1763281914754,0.9153,3216.5,3216.4,11.56400624]
[1763281916838,0.9153,3216.5,3216.4,9.52572039]
[1763281917399,0.9153,3216.5,3216.4,3.828]
[1763281918661,0.4652,3216.5,3216.4,7.34257003]
[1763281920059,0.4652,3216.5,3216.4,3.51457003]
[1763281920430,0.9153,3216.5,3216.4,3.51457003]
[1763281920632,0.9153,3216.5,3216.4,0.405504]
[1763281921953,0.9153,3216.5,3216.4,3.51457003]
[1763281922154,0.4652,3216.5,3216.4,3.51457003]
[1763281922355,0.9153,3216.5,3216.4,0.405504]
[1763281922935,0.4652,3216.5,3216.4,2.14803984]
[1763281923138,0.4652,3216.5,3216.4,6.99964171]
[1763281923466,0.4652,3216.5,3216.4,0.405504]
[1763281923636,0.9153,3216.5,3216.4,2.14803984]
[1763281924364,0.002,3216.5,3216.4,8.35896083]
[1763281925150,0.4951,3216.5,3216.4,7.90816083]
[1763281926063,0.4951,3216.5,3216.4,11.73616083]
[1763281927470,0.9847,3216.5,3216.0,3.828]
[1763281927767,0.4891,3216.1,3216.0,4.9617408]
[1763281928068,0.4891,3216.1,3216.0,5.3672448]
[1763281928258,0.9787,3216.1,3216.0,5.3672448]
[1763281928432,0.9787,3216.1,3216.0,7.10978064]
[1763281929488,0.9787,3216.1,3216.0,4.233504]
[1763281929990,0.9787,3216.1,3215.7,0.405504]
[1763281930301,0.002,3216.5,3215.6,0.001]
[1763281930302,0.6877,3215.7,3215.6,0.001]
[1763281930795,1.1773,3215.7,3215.6,0.001]
[1763281935323,0.4873,3216.3,3215.7,0.405504]
[1763281935668,0.4573,3215.8,3215.6,0.001]
[1763281936506,0.4873,3216.3,3215.7,2.51643129]
[1763281936666,0.4873,3216.3,3215.8,0.03109646]
[1763281938480,0.4873,3216.3,3215.9,0.405504]
[1763281938801,0.002,3216.5,3216.3,0.405504]
[1763281938989,0.002,3216.5,3216.4,6.03100132]
[1763281939169,0.002,3216.5,3216.4,6.96645294]
[1763281940175,0.4593,3216.5,3216.4,0.405504]
[1763281940722,0.4593,3216.5,3216.4,3.51457003]
[1763281940904,0.4593,3216.5,3216.4,0.405504]
[1763281942118,0.4593,3216.5,3216.4,3.51457003]
[1763281942474,0.4593,3216.5,3216.4,0.405504]
[1763281942784,0.4593,3216.5,3216.4,1.27194389]
[1763281943103,0.002,3216.5,3216.4,4.85690992]
[1763281943307,0.002,3216.5,3216.4,5.99065072]
[1763281943478,0.002,3216.5,3216.4,6.45745072]
[1763281945705,0.002,3216.5,3216.4,5.99065072]
[1763281946183,0.4593,3216.5,3216.4,5.10924672]
[1763281946379,0.4593,3216.5,3216.4,8.93724672]
[1763281946779,0.4593,3216.5,3216.4,9.34275072]
[1763281947915,0.002,3216.5,3216.4,9.81865072]
[1763281948379,0.002,3216.5,3216.4,10.28545072]
[1763281948912,0.4593,3216.5,3216.4,9.34275072]
[1763281949485,0.4593,3216.5,3216.4,6.23368469]
[1763281950102,0.9466,3216.5,3216.4,6.23368469]
[1763281951036,0.9466,3216.5,3216.4,5.09994389]
[1763281951179,0.9466,3216.5,3215.9,5.15005514]
[1763281951813,0.9466,3216.5,3216.0,0.405504]
[1763281952016,0.9466,3216.5,3216.1,1.1337408]
[1763281952224,0.4873,3216.4,3216.0,0.405504]
[1763281952510,0.4873,3216.4,3216.1,1.80266959]
[1763281954119,0.4873,3216.4,3216.2,1.1337408]
[1763281954625,0.4573,3216.3,3216.2,1.1337408]
[1763281955592,0.4573,3216.3,3216.1,0.66892879]
[1763281955908,0.4573,3216.3,3216.2,1.1337408]
[1763281956112,0.4573,3216.3,3216.1,0.66892879]
[1763281956423,0.6003,3216.2,3216.1,0.405504]
[1763281957022,0.6003,3216.2,3216.1,0.87037044]
[1763281959034,0.6003,3216.2,3216.1,3.7469809]
[1763281959732,0.6003,3216.2,3216.1,2.00411124]
[1763281959897,20.6003,3216.2,3216.1,2.00411124]
[1763281960098,20.6003,3216.2,3216.1,1.5392448]
[1763281963038,20.6003,3216.2,3216.1,4.64860085]
[1763281963247,20.0,3216.2,3216.1,5.66139441]
[1763281963547,20.0,3216.2,3216.1,9.45830085]
[1763281963702,20.0,3216.2,3216.1,11.06364979]
[1763281964902,20.0,3216.2,3216.1,13.10168449]
[1763281966208,19.49407833,3216.2,3216.1,13.10168449]
[1763281966410,19.49407833,3216.2,3216.1,12.60278449]
[1763281966739,19.49407833,3216.2,3216.1,12.11998449]
[1763281966740,19.96597833,3216.2,3216.1,12.11998449]
[1763281966912,19.96597833,3216.2,3216.1,9.67644579]
[1763281967112,19.96597833,3216.2,3216.1,10.08194979]
[1763281967442,19.49407833,3216.2,3216.1,12.19728049]
[1763281967606,19.49407833,3216.2,3216.1,12.60278449]
[1763281967804,19.49407833,3216.2,3216.1,13.10168449]
[1763281968909,19.49407833,3216.2,3216.1,12.84990146]
[1763281969550,19.96597833,3216.2,3216.1,12.36710146]
[1763281970031,19.96597833,3216.2,3216.1,8.53910146]
[1763281971218,19.49407833,3216.2,3216.1,9.02190146]
[1763281973561,19.49407833,3216.2,3216.1,9.52080146]
[1763281974949,19.49407833,3216.2,3216.1,9.02190146]
[1763281975757,19.49407833,3216.2,3216.1,12.84990146]
[1763281976081,19.96597833,3216.2,3216.1,12.36710146]
[1763281976363,19.49407833,3216.2,3216.1,12.36710146]
[1763281976527,19.49407833,3216.2,3216.1,12.84990146]
[1763281977354,19.49407833,3216.2,3216.1,13.34880146]
[1763281982087,12.62214604,3216.2,3216.1,13.34880146]
[1763281982234,7.44762664,3216.2,3216.1,11.74345252]
[1763281987578,3.61962664,3216.2,3216.1,7.91545252]
[1763281987741,3.61962664,3216.2,3216.1,6.52824852]
[1763281987941,3.61962664,3216.2,3216.1,6.99634852]
[1763281988274,3.61962664,3216.2,3216.1,7.45364852]
[1763281988872,3.61962664,3216.2,3216.1,7.85915252]
[1763281991794,3.62162664,3216.2,3216.1,7.85915252]
[1763281992287,3.11571587,3216.2,3216.1,7.85915252]
[1763281993384,3.11571587,3216.2,3216.1,11.68915252]
[1763281993685,3.11571587,3216.2,3216.1,8.94670085]
[1763281993990,3.11571587,3216.2,3216.1,11.23185252]
[1763281994583,3.11571587,3216.2,3216.1,11.72135252]
[1763281997385,3.11571587,3216.2,3216.1,12.65500848]
[1763282002284,2.60979883,3216.2,3216.1,12.65500848]
[1763282003181,2.60979883,3216.2,3216.1,12.16550848]
[1763282003803,3.07249883,3216.2,3216.1,11.29190448]
[1763282004008,3.54579883,3216.2,3216.1,11.69740848]
[1763282004304,3.07249883,3216.2,3216.1,11.69740848]
[1763282006984,3.07249883,3216.2,3216.1,13.3309982]
[1763282008679,3.07249883,3216.2,3216.1,11.04584653]
[1763282009314,3.54579883,3216.2,3216.1,11.04584653]
[1763282009809,2.60979883,3216.2,3216.1,11.04584653]
[1763282010910,3.07249883,3216.2,3216.1,11.04584653]
[1763282011480,3.54579883,3216.2,3216.1,11.04584653]
[1763282013114,3.07249883,3216.2,3216.1,11.04584653]
[1763282013811,3.54579883,3216.2,3216.1,11.04584653]
[1763282028130,3.54579883,3216.2,3216.1,5.16915996]
[1763282028338,3.90057871,3216.2,3216.0,0.001]
[1763282028530,0.6351,3216.1,3216.0,0.001]
[1763282029112,0.6351,3216.1,3215.7,0.001]
[1763282029311,2.96457871,3216.2,3215.7,0.001]
[1763282029312,0.632,3215.8,3215.7,0.001]
[1763282029751,1.1226,3215.8,3215.7,0.001]
[1763282038066,1.1226,3215.8,3215.7,2.1501876]
[1763282038067,0.632,3215.8,3215.7,2.1501876]
[1763282038234,0.4424,3215.8,3215.7,2.18128502]
[1763282038434,0.933,3215.8,3215.7,2.1501876]
[1763282040865,0.933,3215.8,3215.7,5.25993042]
[1763282041502,0.933,3215.8,3215.7,2.1501876]
[1763282042298,0.933,3215.8,3215.7,0.406504]
[1763282042958,2.60979883,3216.2,3215.8,0.405504]
[1763282043187,2.60979883,3216.2,3216.1,2.8311876]
[1763282043355,2.60979883,3216.2,3216.1,3.7715284]
[1763282043999,2.60979883,3216.2,3216.1,5.19484711]
[1763282045172,2.60979883,3216.2,3216.1,12.13420316]
[1763282050115,2.60979883,3216.2,3216.1,11.64470316]
[1763282050697,2.60979883,3216.2,3216.1,12.11750316]
[1763282052317,0.42708852,3216.2,3216.1,12.11750316]
[1763282057338,0.42708852,3216.2,3216.1,11.64470316]
[1763282057538,0.42708852,3216.2,3216.1,12.10510316]
[1763282060348,0.42708852,3216.2,3216.1,11.64470316]
[1763282063621,0.42708852,3216.2,3216.1,12.10510316]
[1763282064322,0.42708852,3216.2,3216.1,11.64470316]
[1763282068532,0.88628852,3216.2,3216.1,11.15610316]
[1763282068734,1.33908852,3216.2,3216.1,5.78685836]
[1763282068928,1.33908852,3216.2,3216.1,7.32610316]
[1763282069133,1.33908852,3216.2,3216.1,6.92059916]
[1763282069529,1.33908852,3216.2,3216.1,7.32610316]
[1763282070040,1.33908852,3216.2,3216.1,5.17691556]
[1763282070225,1.33908852,3216.2,3216.1,5.58241956]
[1763282070432,1.33908852,3216.2,3216.1,5.17691556]
[1763282070667,1.33908852,3216.2,3216.1,4.04317476]
[1763282070976,1.33908852,3216.2,3216.1,5.58241956]
[1763282073632,0.42708852,3216.2,3216.1,5.58241956]
[1763282073927,0.88628852,3216.2,3216.1,5.58241956]
[1763282074130,0.42708852,3216.2,3216.1,6.07541956]
[1763282074367,0.42708852,3216.2,3216.1,6.55891312]
[1763282074565,0.42708852,3216.2,3216.1,6.52781956]
[1763282075070,0.88378852,3216.2,3216.1,5.58241956]
[1763282075429,0.88378852,3216.2,3216.1,9.41241956]
[1763282075633,0.42708852,3216.2,3216.1,9.87271956]
[1763282075835,0.42708852,3216.2,3216.1,10.32511956]
[1763282082906,0.42708852,3216.2,3216.1,9.87271956]
[1763282086377,0.88378852,3216.2,3216.1,6.30306351]
[1763282086593,1.37688852,3216.2,3216.1,5.17691556]
[1763282086914,0.42708852,3216.2,3216.1,5.58241956]
[1763282087114,0.42708852,3216.2,3216.1,4.44867876]
[1763282087318,0.88378852,3216.2,3216.1,5.58241956]
[1763282088114,1.37688852,3216.2,3216.1,5.58241956]
[1763282089691,1.37688852,3216.2,3216.1,2.06755951]
[1763282089869,1.68934573,3216.2,3216.1,2.06755951]
[1763282090073,1.37688852,3216.2,3216.1,2.47306351]
[1763282090423,1.37688852,3216.2,3216.1,1.33932271]
[1763282090728,1.37688852,3216.2,3216.1,0.93381871]
[1763282091014,1.37688852,3216.2,3216.1,1.33932271]
[1763282095630,1.37688852,3216.2,3216.1,0.93381871]
[1763282095835,1.67840376,3216.2,3216.1,0.93381871]
[1763282096049,1.37688852,3216.2,3216.1,0.93381871]
[1763282097939,3.01115245,3216.2,3216.1,0.93381871]
[1763282098115,3.01115245,3216.2,3216.0,0.001]
[1763282098440,0.6189,3216.1,3216.0,0.001]
[1763282100738,0.6189,3216.1,3216.0,0.93481871]
[1763282101309,0.6189,3216.1,3216.0,1.34032271]
[1763282102106,0.6189,3216.1,3216.0,0.93481871]
[1763282102437,0.88712524,3216.1,3216.0,0.93481871]
[1763282103662,0.88712524,3216.1,3216.0,0.001]
[1763282103833,0.6189,3216.1,3216.0,0.406504]
[1763282104035,0.1258,3216.1,3216.0,0.406504]
[1763282104240,0.1258,3216.1,3216.0,3.51595673]
[1763282104536,0.42708852,3216.2,3216.0,5.62952066]
[1763282104739,0.4707,3216.1,3216.0,4.64969753]
[1763282104956,0.4707,3216.1,3216.0,2.0353448]
[1763282105246,0.9472,3216.1,3216.0,5.14479753]
[1763282105420,0.4707,3216.1,3216.0,5.14479753]
[1763282105946,0.4707,3216.1,3216.0,2.0353448]
[1763282106122,0.4707,3216.1,3216.0,5.14479753]
[1763282107028,0.9472,3216.1,3216.0,5.14479753]
[1763282107234,0.9472,3216.1,3216.0,2.0353448]
[1763282107744,0.9472,3216.1,3216.0,5.14479753]
[1763282108243,0.42708852,3216.2,3216.0,7.74226146]
[1763282108444,0.42708852,3216.2,3216.1,1.552404]
[1763282108652,0.42708852,3216.2,3216.1,2.6861448]
[1763282109543,0.42708852,3216.2,3216.1,6.22258937]
[1763282112914,0.42708852,3216.2,3216.1,5.73868937]
[1763282113636,0.42708852,3216.2,3216.1,10.05258937]
[1763282113838,0.42708852,3216.2,3216.1,9.56868937]
[1763282115843,0.92208852,3216.2,3216.1,7.77194857]
[1763282116045,0.92208852,3216.2,3216.1,8.90568937]
[1763282116236,0.42708852,3216.2,3216.1,8.90568937]
[1763282117828,0.92208852,3216.2,3216.1,8.90568937]
[1763282118027,0.92208852,3216.2,3216.1,0.42708852]
[1763282118211,3.27978769,3216.2,3216.0,0.001]
[1763282118415,0.5885,3216.1,3216.0,0.001]
[1763282120379,3.69785605,3216.1,3216.0,0.001]
[1763282121217,0.5885,3216.1,3216.0,0.001]
[1763282122540,3.69785605,3216.1,3216.0,0.001]
[1763282122739,4.58489375,3216.1,3216.0,0.001]
[1763282128267,4.58689375,3216.1,3216.0,0.001]
[1763282129798,5.72063455,3216.1,3216.0,0.001]
[1763282130077,6.33698564,3215.7,3215.5,0.001]
[1763282130259,2.93857889,3215.6,3215.5,0.001]
[1763282130438,3.40597889,3215.6,3215.5,0.001]
[1763282132273,6.51581842,3215.6,3215.5,0.001]
[1763282139466,7.64955922,3215.6,3215.5,0.001]
[1763282139663,7.64955922,3215.6,3215.4,0.001]
[1763282139664,1.1337408,3215.5,3215.4,0.001]
[1763282139864,2.794671,3215.5,3215.4,0.001]
[1763282140188,1.63426393,3215.4,3214.5,0.001]
[1763282140479,1.77506393,3215.1,3214.5,0.001]
[1763282140653,0.4681,3215.0,3214.5,0.001]
[1763282140858,5.49967117,3215.0,3214.5,0.001]
[1763282144784,11.72051097,3215.0,3214.5,0.001]
[1763282144982,1.77836393,3214.6,3214.5,0.001]
[1763282145361,6.48671167,3214.6,3214.5,0.001]
[1763282146249,1.1337408,3214.5,3214.2,0.001]
[1763282146562,2.09916393,3214.3,3214.2,0.001]
[1763282147074,2.56296393,3214.3,3214.2,0.001]
[1763282147586,6.80780201,3214.3,3214.2,0.001]
[1763282150856,8.66704528,3214.3,3214.2,0.001]
[1763282151213,4.70973808,3214.3,3214.2,0.001]
[1763282151427,3.43410619,3215.0,3214.2,0.4626]
[1763282151715,6.22016241,3215.4,3214.3,0.405504]
[1763282151862,1.7467536,3214.8,3214.3,0.405504]
[1763282152059,1.7467536,3214.4,3214.3,0.4824]
[1763282152300,1.7467536,3214.8,3214.7,0.4616]
[1763282153197,2.2181536,3214.8,3214.3,0.4824]
[1763282153364,1.7467536,3214.5,3214.3,0.4824]
[1763282153697,1.7467536,3214.5,3214.2,0.888904]
[1763282153698,4.24483808,3214.3,3214.2,0.001]
[1763282153864,6.45969168,3214.3,3214.2,0.001]
[1763282154060,6.92349168,3214.3,3214.2,0.001]
[1763282154818,6.45969168,3214.3,3214.2,0.001]
[1763282155024,6.92349168,3214.3,3214.2,0.001]
[1763282155221,8.11908358,3214.3,3214.2,0.001]
[1763282155445,3.3485944,3214.3,3214.2,0.001]
[1763282155594,1.7467536,3214.3,3214.2,0.4626]
[1763282156224,4.85785088,3214.3,3214.2,0.4626]
[1763282156709,5.79305088,3214.3,3214.2,0.001]
[1763282156905,7.06088258,3214.3,3214.2,0.001]
[1763282157316,5.1541305,3214.3,3214.2,0.4626]
[1763282158192,2.04303322,3214.3,3214.2,0.4626]
[1763282158425,5.1541305,3214.3,3214.2,0.4626]
[1763282160942,0.4638,3215.1,3214.2,0.4626]
[1763282161101,2.04303322,3214.8,3214.2,0.001]
[1763282161302,2.04303322,3214.5,3214.2,0.001]
[1763282161939,2.50683322,3214.5,3214.2,0.001]
[1763282162141,2.04503322,3214.5,3214.4,0.4616]
[1763282162303,5.15593693,3214.5,3214.4,0.4616]
[1763282162934,5.15593693,3214.5,3214.2,0.6614]
[1763282162935,8.73824064,3214.5,3214.2,0.001]
[1763282163145,10.0758647,3214.5,3214.2,0.001]
[1763282163438,5.15593693,3214.5,3214.4,0.4616]
[1763282163741,3.11290371,3214.5,3214.4,0.4616]
[1763282164037,0.002,3214.5,3214.4,0.4616]
[1763282164748,3.11290371,3214.5,3214.4,0.4616]
[1763282165346,3.11290371,3214.5,3214.2,0.001]
[1763282165347,3.59630371,3214.5,3214.2,0.001]
[1763282167945,0.002,3214.5,3214.2,0.001]